Cogmind - Beta 14 @@@ ROGUE MODE // 2024.10.11 @ 23:12:13 Player: Sam Result: Destroyed by G-34 Mercenary with Small Laser Performance ------------- Evolutions (1) 500 Regions Visited (2) 400 Robots Destroyed (11) 55 Value Destroyed (326) 326 Prototype IDs (2) 40 Alien Tech Used (0) 0 Bonus (0) 0 TOTAL SCORE: 1321 Bonus ------- None Cogmind --------- Core Integrity 0/400 Matter 421/500 Energy 100/100 System Corruption 1% Temperature Cool (6) Movement Core (400) Ox7 Location -9/Materials Parts ------- > --- POWER (1) -------- (None) > --- PROPULSION (2) --- (None) > --- UTILITY (4) ------ Large Storage Unit High-capacity Matter Pod Terrain Scan Processor > --- WEAPON (2) ------- (None) > --- INVENTORY (15) --- Ion Engine Aluminum Leg Aluminum Leg Wheel Armored Wheel Small Storage Unit Peak State ------------ > --- POWER ------------ Ion Engine > --- PROPULSION ------- Light Treads Light Treads > --- UTILITY ---------- Large Storage Unit High-capacity Matter Pod Terrain Scan Processor Light Armor Plating > --- WEAPON ----------- EM Pulse Gun Assault Rifle > --- INVENTORY -------- Ion Engine Aluminum Leg Aluminum Leg Wheel Armored Wheel Small Storage Unit Small Laser [Rating: 10] Favorites ----------- Power Ion Engine Engine Ion Engine Propulsion Light Treads Treads Light Treads Utility High-capacity Matter Pod Storage High-capacity Matter Pod Processor Terrain Scan Processor Protection Light Armor Plating Weapon Assault Rifle Energy Gun EM Pulse Gun Ballistic Gun Assault Rifle Build | -11 -10 -9 ------- Run | Yrd Mat Mat Slots Evolved 2 | . . 2 Power . | . . . Propulsion . | . . . Utility 2 | . . 2 Weapon . | . . . Parts Attached 17 | 7 7 3 Power 2 | 1 1 . Engine 2 | 1 1 . Core . | . . . Reactor . | . . . Propulsion 2 | 2 . . Treads 2 | 2 . . Leg . | . . . Wheel . | . . . Hover . | . . . Flight . | . . . Utility 5 | 1 2 2 Device . | . . . Storage 3 | 1 2 . Processor 1 | . . 1 Hackware . | . . . Protection 1 | . . 1 Artifact . | . . . Weapon 8 | 3 4 1 Energy Gun 3 | 1 1 1 Energy Cannon . | . . . Ballistic Gun 5 | 2 3 . Ballistic Cannon . | . . . Launcher . | . . . Special Weapon . | . . . Impact Weapon . | . . . Slashing Weapon . | . . . Piercing Weapon . | . . . Special Melee Weapon . | . . . Unidentified Prototypes . | . . . Corrupted Parts 1 | . . 1 System Corruption 1 | . . 1 Parts Lost 8 | . 1 7 Power 1 | . . 1 Propulsion 2 | . . 2 Utility 1 | . . 1 Weapon 4 | . 1 3 Highest Loss Streak 4 | . 1 4 To Critical Strikes . | . . . Average Slot Usage (%) 83 | . 95 78 Engine 11 | . 13 10 Treads 23 | . 28 20 Storage 23 | . 25 22 Processor 1 | . . 1 Protection 1 | . . 1 Energy Gun 7 | . 1 10 Ballistic Gun 15 | . 25 9 Peak Build Rating 10 | 6 7 10 Average Rating 6 | 4 6 7 On Entrance 4 | . 6 7 Naked Turns . | . . . Heaviest Build 36 | 14 33 36 Greatest Support 40 | 40 40 40 Greatest Overweight (x) 1 | . . 1 Average Overweight (x) . | . . . Largest Inventory Capacity 15 | 8 15 15 Average Capacity 12 | 6 10 15 Most Carried 8 | 6 8 8 Average Carried 6 | 3 6 7 Final Capacity 15 | 8 15 15 Final Carried 6 | 6 6 6 Class Distribution -------------------- 100% | Mutant Dominant Class ---------------- Mutant | -10/Materials Mutant | -9/Materials Resources | -11 -10 -9 ----------- Run | Yrd Mat Mat Matter Collected 488 | 209 106 173 Remotely . | . . . Salvage Created 377 | . 108 269 Parts 27 | . 7 20 Haulers Intercepted . | . . . Recyclers Shooed . | . . . Parts Field Recycled . | . . . Retrieved Matter . | . . . Parts Self-Destructed . | . . . Prevented . | . . . Kills | -11 -10 -9 ------- Run | Yrd Mat Mat Combat Hostiles Destroyed 11 | . 3 8 Guns 10 | . 3 7 AOE 1 | . . 1 Classes Destroyed 3 | . 1 2 Swarmer 3 | . . 3 Grunt 7 | . 3 4 Sentry 1 | . . 1 Best Kill Streak 3 | . 3 3 Combat Bots Only 3 | . 3 3 Max Kills in Single Turn 1 | . 1 1 Gunslinging . | . . . Exploded 1 | . . 1 Melee . | . . . Uniques/NPCs Destroyed . | . . . Combat | -11 -10 -9 -------- Run | Yrd Mat Mat Hostile Shots Fired 145 | . 31 114 Missed 35 | . 7 28 Damage Taken 1260 | . 342 918 Core 448 | . 38 410 Absorbed by Shields . | . . . Core Remaining (%) 92 | 100 84 . Volleys Fired 34 | . 16 18 Largest 2 | . 2 2 Hottest 60 | . 40 60 Shots Fired 59 | . 26 33 Gun 59 | . 26 33 Cannon . | . . . Launcher . | . . . Special . | . . . Kinetic 44 | . 26 18 Thermal . | . . . Explosive . | . . . Electromagnetic 15 | . . 15 Robot Hit Streak 11 | . 11 8 Robot Miss Streak 4 | . 2 4 Penetration Max . | . . . Secondary Targets 1 | . . 1 Max Gunslinging Chain 1 | . . 1 Shots Hit Robots 35 | . 21 14 Core Hits 22 | . 8 14 Critical Kills . | . . . Critical Parts Destroyed . | . . . Critical Strikes . | . . . Melee Attacks . | . . . Impact . | . . . Slashing . | . . . Piercing . | . . . Sneak Attacks . | . . . Combat Hostiles . | . . . Follow-up Attacks . | . . . Damage Inflicted 557 | . 264 293 Guns 494 | . 264 230 Cannons . | . . . Explosions 41 | . . 41 Melee . | . . . Ramming 22 | . . 22 Kinetic 364 | . 264 100 Thermal 41 | . . 41 Explosive . | . . . Electromagnetic 130 | . . 130 Impact . | . . . Slashing . | . . . Piercing . | . . . Highest Corruption 1 | . . 1 Average Corruption 1 | . . 1 Corruption Purged . | . . . Corruption Blocked . | . . . Effects 1 | . . 1 Message Errors 1 | . . 1 Overload Shots . | . . . Overflow Damage . | . . . Projectiles . | . . . Explosions . | . . . Melee . | . . . Knockbacks 1 | . . 1 Impact 1 | . . 1 Kinetic . | . . . Secondary . | . . . Self-Inflicted Damage . | . . . Shots . | . . . Rammed 11 | . . 11 Targets Rammed 11 | . . 11 Kicked . | . . . Crushed . | . . . Highest Temperature 8 | . 8 3 Average Temperature 3 | . 4 3 Received Heat Transfer 519 | . 186 333 Siege Activations . | . . . Robots Corrupted . | . . . Combat Hostiles . | . . . Parts Fried . | . . . Impact Corruptions . | . . . Robots Melted . | . . . Combat Hostiles . | . . . Parts Melted . | . . . Heat Transferred 50 | . . 50 Parts Sabotaged . | . . . Parts Stolen . | . . . Parts Stripped . | . . . Power Chain Reactions 1 | . . 1 Alert | -11 -10 -9 ------- Run | Yrd Mat Mat Peak Influence 231 | . 84 231 Initial 35 | . . 35 Average 63 | . 20 95 Maximum Alert Level 1 | . . 1 Low Security (%) 94 | 100 100 91 Level 1 5 | . . 8 Level 2 . | . . . Level 3 . | . . . Level 4 . | . . . Level 5 . | . . . High Security . | . . . Max Security . | . . . Squads Dispatched 2 | . 1 1 Investigation 1 | . . 1 Extermination . | . . . Reinforcement 1 | . 1 . Assault . | . . . Garrison . | . . . Intercept . | . . . Searches Triggered . | . . . Construction Impeded . | . . . Haulers Reinforced . | . . . Active Scanning Responses . | . . . Cargo Convoy Interrupts . | . . . Stealth | -11 -10 -9 --------- Run | Yrd Mat Mat Distress Signals . | . . . Communications Jammed . | . . . Distress Signals . | . . . Times Spotted 18 | . 5 13 Peak Tracking Total 5 | . 4 5 Tactical Retreats 2 | . . 2 Traps | -11 -10 -9 ------- Run | Yrd Mat Mat Traps Triggered 5 | . 4 1 Indirectly . | . . . Trap Hack Attempts . | . . . Triggered . | . . . Disarmed . | . . . Reprogrammed . | . . . Reused . | . . . Traps Extracted . | . . . Installed . | . . . Triggered . | . . . Machines | -11 -10 -9 ---------- Run | Yrd Mat Mat Machines Disabled . | . . . Max in Single Turn . | . . . Machines Repaired . | . . . Machines Dismantled . | . . . Machines Sabotaged . | . . . Overloaded Fab Kills . | . . . Hacking | -11 -10 -9 --------- Run | Yrd Mat Mat Machines Accessed 5 | . 4 1 Terminals 4 | . 3 1 Fabricators . | . . . Repair Stations . | . . . Recycling Units 1 | . 1 . Scanalyzers . | . . . Garrison Access . | . . . Total Hacks 16 | . 14 2 Successful 13 | . 11 2 Failed 3 | . 3 . Catastrophic . | . . . Database Lockouts . | . . . Manual . | . . . Terminals 9 | . 7 2 Fabricators . | . . . Repair Stations . | . . . Recycling Units 7 | . 7 . Scanalyzers . | . . . Garrison Access . | . . . Terminal Hacks 6 | . 4 2 Robot Analysis 1 | . 1 . Prototype ID Bank 1 | . 1 . Dispatch Records 1 | . 1 . Security Status 1 | . . 1 Assault Status 1 | . . 1 Hauler Manifests 1 | . 1 . Fabricator Hacks . | . . . Repair Station Hacks . | . . . Recycling Unit Hacks 7 | . 7 . Recycle Component 2 | . 2 . Process 2 | . 2 . Report Inventory 2 | . 2 . Retrieve Matter 1 | . 1 . Scanalyzer . | . . . Garrison Access Hacks . | . . . Unauthorized Hacks . | . . . Terminals . | . . . Fabricators . | . . . Repair Stations . | . . . Recycling Units . | . . . Scanalyzers . | . . . Garrison Access . | . . . Data Cores Recovered . | . . . Used . | . . . Hacking Detections 5 | . 4 1 Full Trace Events . | . . . Feedback Events . | . . . Feedback Blocked . | . . . Robot Schematics Acquired . | . . . Robots Built . | . . . Authchips . | . . . Time . | . . . Total Robot Build Rating . | . . . Part Schematics Acquired . | . . . Parts Built . | . . . Authchips . | . . . Time . | . . . Total Part Build Rating . | . . . Parts Repaired . | . . . Time . | . . . Parts Recycled 2 | . 2 . Recycled Matter 50 | . 50 . Retrieved Matter 50 | . 50 . Retrieved Components . | . . . Parts Scanalyzed . | . . . Part Schematics Acquired . | . . . Parts Damaged . | . . . Bothacking | -11 -10 -9 ------------ Run | Yrd Mat Mat Used RIF Installer . | . . . Robots Hacked . | . . . Non-combat . | . . . Combat . | . . . Robot Hacks Applied . | . . . Relay Couplers Released . | . . . Fabnet Peak Effective % . | . . . Robots Rewired . | . . . Allies Hacked . | . . . Hacks Repelled . | . . . Allies | -11 -10 -9 -------- Run | Yrd Mat Mat Total Allies . | . . . Largest Group . | . . . Highest-Rated Group . | . . . Highest-Rated Ally . | . . . Total Orders . | . . . Ally Attacks . | . . . Total Damage . | . . . Kills . | . . . Allies Corrupted . | . . . Allies Melted . | . . . Intel | -11 -10 -9 ------- Run | Yrd Mat Mat Robot Analysis Total 1 | . 1 . Derelict Logs Recovered . | . . . Drone Launches . | . . . Drone Recoveries . | . . . Exploration | -11 -10 -9 ------------- Run | Yrd Mat Mat Turns Passed 1213 | 119 374 720 Spaces Moved 483 | 62 188 233 Core 8 | 8 . . Treads 475 | 54 188 233 Legs . | . . . Wheels . | . . . Hover . | . . . Flight . | . . . Fastest Speed 50 | 50 160 160 Average Speed 160 | 145 160 164 Slowest Speed 240 | 160 160 240 Overloaded Moves . | . . . Propulsion Burnouts . | . . . Robots Hopped . | . . . Cave-ins Triggered . | . . . Exploration Rate (%) 16 | 4 28 16 Regions Visited 2 Branch Regions . Pre-discovered Areas . | . . . Known Exits Taken . | . . . Unknown Exits Taken 2 | 1 1 . Scrap Searched . | . . . Spaces Dug . | . . . Terrain Destroyed 2 | . . 2 Melee . | . . . Projectile . | . . . AOE 2 | . . 2 Terrain Rammed . | . . . Walls Destroyed . | . . . Machines Disabled . | . . . Actions | -11 -10 -9 --------- Run | Yrd Mat Mat Total 831 | 87 232 512 Wait 278 | 13 20 245 Move 481 | 61 187 233 Hop . | . . . Pick Up 10 | 6 2 2 Fast Attach 12 | 6 5 1 Attach 3 | . 1 2 Detach . | . . . Swap 2 | 1 1 . Drop . | . . . Fire 34 | . 16 18 Melee . | . . . Ram 6 | . . 6 Kick . | . . . Crush 5 | . . 5 Escape Stasis . | . . . Rewire . | . . . Trap . | . . . Miscellaneous . | . . . Route ------- -11/Scrapyard -10/Materials -9/Materials History --------- Turn | Location | Event 7 | -11/Scrapyard | Discovered new exit (range 14) 120 | -11/Scrapyard | Entered Materials 334 | -10/Materials | Build established: Mutant 465 | -10/Materials | Discovered new exit (range 16) 494 | -10/Materials | Entered another Materials area 494 | -9/Materials | Evolved 2 slots: Utility x2 1180 | -9/Materials | Lost 3 parts (1n2w) 1197 | -9/Materials | Core integrity fell below 50% 1209 | -9/Materials | Core integrity fell below 20% 1214 | -9/Materials | Destroyed by G-34 Mercenary with Small Laser Last Messages --------------- Corrupted Sml. Laser temporarily disabled. Lgt. Treads destroyed. Slammed into T-07 Excavator. Slammed into G-34 Mercenary. Lgt. Armor Plating destroyed. Slammed into G-34 Mercenary. G-34 Mercenary knocked back. Slammed into G-47 Trooper. Lgt. Treads destroyed. Slammed into S-10 Pest. Ion Engine destroyed. Slammed into S-10 Pest. Slammed into G-47 Trooper. Sml. Laser destroyed. Slammed into S-10 Pest. Terrain Scan Processor broken. Destabilizing: Short circuit. Slammed into G-47 Trooper. Z0Y,VN9OBPB9LKSKL%L2FK#N895HX5ZYH%CLC Z Slammed into G-34 Mercenary. Map ----- +----------------------------------------------------+ | ?????????????????????????????????????????????????? | | ?????????????????????????????????????????????????? | | ?????????????????????????????????????????????????? | | ?????????????????????????????????????????????????? | | ?????????????????????????????????????????????????? | | ?????????????????????????????????????????????????? | | ?????????????????????????????????????????????????? | | ?????????????????????????????????????????????????? | | ?????????????????????????????????????????????????? | | ?????????????????????????????????????????????????? | | ?????????????????????????????????????????????????? | | ?????????????? ???????????????????????????????? | | ?????????????? ?????????????????????????????? | | ?????????????? ?????????????????????????????? | | ?????????????? ??????????????????????????????? | | ?????????????? ??????????????????????????????? | | ????????? ???? ??????????????????????????????? | | ?????????? """ ??????????????????????????????? | | ?????????? """ ???????????????????????????????? | | ????????"" """ ???????????????????????????????? | | ??????? % ???????????????????????????????? | | ??????? #???????????????????????????????? | | ???????""" """ #???????????????????????????????? | | ?????? """ """ #???????????????????????????????? | | """ """==#??????#####????????????????????? | | %= *%########@ #????????????????????? | | = %= g gs#????????????????????? | | ??????#"T"############### #????????????????????? | | ?????????????????# /k #????????????????????? | | ?????????????????# # #????????????????????? | | ?????????????????# # #????????????????????? | | ?????????????????# ! !# ####?????????????????? | | ?????????????????# !! # !##????????????????? | | ?????????????????# !! # k !#????????????????? | | ?????????????????######## !#????????????????? | | ????????????????????????# !#????????????????? | | ????????????????????????# !#????????????????? | | ???????????????########## !##????????????????? | | ???????????????# #t a####?????????????????? | | ???????????????# # #????????????????????? | | ???????????????# # #????????????????????? | | ???????????????# # #????????????????????? | | ???????????????# + #????????????????????? | | ???????????????# # #????????????????????? | | ???????????????# # #????????????????????? | | ???????????????# # #????????????????????? | | ???????????????# # #########????????????? | | ???????????????########## ## #????????????? | | ????????????????????????# ## "T" #????????????? | | ????????????????????????# ## #????????????? | +----------------------------------------------------+ Best States ------------- Heat Dissipation 28 Energy Generation 10 Energy Capacity 250 Matter Stores 416 Matter Capacity 500 Sight Range 16 Terrain Scan Density 85 Armor Coverage 150 Evasion (%) 40 Recoil Reduction 2 Item Schematics ----------------- None Robot Schematics ------------------ None Fabricated ------------ Nothing Alien Tech Used ----------------- None Achievements -------------- Shopping List Challenges ------------ None Game ------ Seed MiniDirtyBoregun Manual? 0 Play Time 00:13:23 Cumulative 5.6 hours Start 2024.10.11 @ 22:59:42 End 2024.10.11 @ 23:12:13 Sessions 1 Manual Loads 0 Difficulty Rogue Special Mode None Game No. 15 Rogue 14 Adventurer 1 Explorer 0 Win Type - Total 0 Types 0/0/0/0/0/0/0/0/0 Lore% 9 Gallery% 12 Achievement% 12 Wizard Run 0 Options --------- Layout 1 ASCII 0 Keyboard 0 Movement Numpad Keybinds 0 Fullscreen 1 Font 24/Smallcaps Map View 50x35 Zoom Use 0% Tactical HUD 0 Map Filters NONE Filters NONE Steam 1 RUN: d867c99e-54b4-498b-a239-8e1182dcc5ee